Cogmind - Beta 15 @@@ ROGUE MODE // 2025.09.15 @ 16:14:56 Player: Jeff234 Result: Self-destructed Performance ------------- Evolutions (1) 500 Regions Visited (2) 400 Robots Destroyed (31) 155 Value Destroyed (789) 789 Prototype IDs (1) 20 Alien Tech Used (0) 0 Bonus (0) 0 TOTAL SCORE: 1864 Bonus ------- None Cogmind --------- Core Integrity 180/400 Matter 295/300 Energy 515/515 System Corruption 0% Temperature Cool (0) Movement Treading (160) Location -9/Materials Parts ------- > --- POWER (2) -------- Improved Ion Engine > --- PROPULSION (2) --- Light Treads Improved Treads > --- UTILITY (3) ------ Heat Sink High-capacity Battery > --- WEAPON (2) ------- Spread Laser Mining Laser > --- INVENTORY (5) ---- Small Storage Unit Medium Matter Pod (100) Structural Scanner Salvage Targeting Computer ECM Suite Peak State ------------ > --- POWER ------------ Ion Engine Ion Engine > --- PROPULSION ------- Light Treads Light Treads > --- UTILITY ---------- Heat Sink Heat Sink High-capacity Battery > --- WEAPON ----------- Improved EM Shotgun Spread Laser > --- INVENTORY -------- Small Storage Unit Medium Matter Pod Structural Scanner [Rating: 12] Favorites ----------- Power Light Ion Engine Engine Light Ion Engine Propulsion Light Treads Treads Light Treads Wheel Wheel Hover Unit Backup Propulsion I Utility Heat Sink Device Heat Sink Storage High-capacity Battery Processor Signal Interpreter Weapon Spread Laser Energy Gun Spread Laser Ballistic Gun Light Assault Rifle Launcher Grenade Launcher Special Weapon Mining Laser Build | -11 -10 -9 ------- Run | Yrd Mat Mat Slots Evolved 2 | . . 2 Power 1 | . . 1 Propulsion . | . . . Utility 1 | . . 1 Weapon . | . . . Parts Attached 33 | 4 14 15 Power 6 | 1 2 3 Engine 6 | 1 2 3 Core . | . . . Reactor . | . . . Propulsion 6 | 2 1 3 Treads 4 | . 1 3 Leg . | . . . Wheel 2 | 2 . . Hover . | . . . Flight . | . . . Utility 9 | . 5 4 Device 3 | . 1 2 Storage 5 | . 3 2 Processor 1 | . 1 . Hackware . | . . . Protection . | . . . Artifact . | . . . Weapon 12 | 1 6 5 Energy Gun 7 | . 3 4 Energy Cannon . | . . . Ballistic Gun 3 | 1 2 . Ballistic Cannon . | . . . Launcher 1 | . 1 . Special Weapon 1 | . . 1 Impact Weapon . | . . . Slashing Weapon . | . . . Piercing Weapon . | . . . Special Melee Weapon . | . . . Unidentified Prototypes 1 | . . 1 Parts Lost 11 | . 3 8 Power 3 | . 1 2 Propulsion 3 | . 2 1 Utility 1 | . . 1 Weapon 4 | . . 4 Highest Loss Streak 5 | . 2 5 To Critical Strikes . | . . . Average Backups 3 | . 2 4 Power . | . . . Propulsion . | . . . Utility 2 | . . 3 Weapon 1 | . 1 . Tool/Special . | . . . Unused Backups 5 | . 1 4 Power . | . . . Propulsion . | . . . Utility 4 | . . 4 Weapon 1 | . 1 . Tool/Special . | . . . Average Slot Usage (%) 86 | . 83 88 Engine 13 | . 11 14 Treads 12 | . 6 18 Wheel 3 | . 6 . Hover 6 | . 9 3 Device 6 | . . 13 Storage 17 | . 15 18 Processor 3 | . 6 . Energy Gun 10 | . 1 18 Ballistic Gun 7 | . 16 . Launcher 4 | . 8 . Peak Build Rating 12 | 4 9 12 Average Rating 7 | 3 6 9 On Entrance 4 | . 4 9 Naked Turns . | . . . Heaviest Build 23 | 5 16 23 Greatest Support 43 | 20 20 43 Greatest Overweight (x) 3 | . 3 1 Average Overweight (x) . | . . . Largest Inventory Capacity 8 | 5 5 8 Average Capacity 5 | 5 5 6 Most Carried 7 | 2 5 7 Average Carried 3 | . 2 4 Final Capacity 5 | 5 5 5 Final Carried 5 | . 4 5 Class Distribution -------------------- 72% | Mutant 27% | Scavenger-Mutant Dominant Class ---------------- Mutant | -10/Materials Scavenger-Mutant | -9/Materials Resources | -11 -10 -9 ----------- Run | Yrd Mat Mat Matter Collected 871 | 252 229 390 Remotely . | . . . Salvage Created 852 | 47 226 579 Parts 60 | 2 23 35 Haulers Intercepted . | . . . Recyclers Shooed 3 | . 1 2 Parts Field Recycled . | . . . Retrieved Matter . | . . . Parts Self-Destructed . | . . . Prevented . | . . . Kills | -11 -10 -9 ------- Run | Yrd Mat Mat Combat Hostiles Destroyed 28 | 1 10 17 Guns 24 | 1 7 16 AOE 4 | . 3 1 Classes Destroyed 6 | 1 2 3 Worker 1 | . 1 . Watcher 2 | . . 2 Swarmer 10 | . 6 4 Grunt 15 | 1 4 10 Brawler 1 | . . 1 Sentry 2 | . . 2 Best Kill Streak 5 | 1 4 5 Combat Bots Only 5 | 1 3 5 Max Kills in Single Turn 3 | 1 3 2 Gunslinging . | . . . Exploded 1 | . 1 1 Melee . | . . . Uniques/NPCs Destroyed . | . . . Combat | -11 -10 -9 -------- Run | Yrd Mat Mat Hostile Shots Fired 211 | 3 66 142 Missed 60 | 1 12 47 Hits 151 | 2 54 95 Projectile 151 | 2 54 95 Critical Strikes 3 | . 1 2 Damage Taken 1616 | 20 527 1069 Core 370 | . 150 220 Absorbed by Shields . | . . . Core Remaining (%) 70 | 100 40 . Volleys Fired 84 | 4 34 46 Largest 2 | 1 2 2 Hottest 105 | 20 50 105 Shots Fired 123 | 4 55 64 Gun 119 | 4 51 64 Cannon . | . . . Launcher 4 | . 4 . Special . | . . . Kinetic 55 | 4 51 . Thermal 32 | . . 32 Explosive 4 | . 4 . Electromagnetic 32 | . . 32 Robot Hit Streak 11 | 2 8 11 Robot Miss Streak 6 | 1 4 6 Penetration Max . | . . . Secondary Targets . | . . . Shots Hit Robots 84 | 3 29 52 Core Hits 79 | 2 18 59 Critical Kills . | . . . Critical Parts Destroyed . | . . . Critical Strikes . | . . . Melee Attacks . | . . . Impact . | . . . Slashing . | . . . Piercing . | . . . Sneak Attacks . | . . . Combat Hostiles . | . . . Follow-up Attacks . | . . . Damage Inflicted 1287 | 34 432 821 Guns 1063 | 34 246 783 Cannons . | . . . Explosions 221 | . 186 35 Melee . | . . . Ramming 3 | . . 3 Kinetic 280 | 34 246 . Thermal 467 | . . 467 Explosive 186 | . 186 . Electromagnetic 351 | . . 351 Impact . | . . . Slashing . | . . . Piercing . | . . . Highest Corruption . | . . . Average Corruption . | . . . Corruption Purged . | . . . Corruption Blocked . | . . . Overload Shots . | . . . Overflow Damage . | . . . Projectiles . | . . . Explosions . | . . . Melee . | . . . Knockbacks . | . . . Impact . | . . . Kinetic . | . . . Secondary . | . . . Self-Inflicted Damage 8 | . . 8 Shots 1 | . . 1 Rammed 2 | . . 2 Targets Rammed 2 | . . 2 Kicked . | . . . Crushed . | . . . Highest Temperature 34 | . 24 34 Average Temperature 9 | . 6 10 Received Heat Transfer 660 | 12 174 474 Siege Activations . | . . . Martial Activations . | . . . Shielding Activations . | . . . Robots Disrupted . | . . . Combat Hostiles . | . . . Robots Corrupted . | . . . Combat Hostiles . | . . . Parts Fried . | . . . Impact Corruptions . | . . . Robots Melted . | . . . Combat Hostiles . | . . . Parts Melted . | . . . Heat Transferred 535 | . . 535 Parts Sabotaged . | . . . Parts Stolen . | . . . Parts Stripped . | . . . Power Chain Reactions 1 | . . 1 Alert | -11 -10 -9 ------- Run | Yrd Mat Mat Maximum Alert Level . | . . . Low Security (%) 100 | 100 100 100 Level 1 . | . . . Level 2 . | . . . Level 3 . | . . . Level 4 . | . . . Level 5 . | . . . High Security . | . . . Max Security . | . . . Peak Influence 143 | 20 143 130 Initial 13 | . 13 . Average 46 | 3 50 44 Influence Increases 800 | 20 315 465 Destroy 0b10 Robot/C 560 | 20 200 340 Destroy 0b10 Robot/NC 15 | . 5 10 Destroy Leader 104 | . 40 64 Successful Hack 26 | . 22 4 Disable Machine 30 | . 15 15 Destroy Structure 35 | . 33 2 Lose Combat Pursuer 30 | . . 30 Influence Decreases 685 | . 335 350 Entered New Map 7 | . 7 . Time Decay 588 | . 318 270 Lost Part 90 | . 10 80 Squads Dispatched 6 | . 3 3 Investigation 2 | . 1 1 Extermination . | . . . Reinforcement 4 | . 2 2 Assault . | . . . Garrison . | . . . Intercept . | . . . Searches Triggered . | . . . Construction Impeded . | . . . Haulers Reinforced . | . . . Active Scanning Responses . | . . . Cargo Convoy Interrupts . | . . . Stealth | -11 -10 -9 --------- Run | Yrd Mat Mat Distress Signals 2 | . . 2 Communications Jammed . | . . . Distress Signals . | . . . Times Spotted 44 | 1 13 30 Peak Tracking Total 6 | 1 3 6 Tactical Retreats 2 | . . 2 Traps | -11 -10 -9 ------- Run | Yrd Mat Mat Traps Triggered 1 | . 1 . Indirectly . | . . . Trap Hack Attempts . | . . . Triggered . | . . . Disarmed . | . . . Reprogrammed . | . . . Reused . | . . . Traps Extracted . | . . . Installed . | . . . Triggered . | . . . Machines | -11 -10 -9 ---------- Run | Yrd Mat Mat Machines Disabled 2 | . 1 1 Max in Single Turn 1 | . 1 1 Machines Repaired . | . . . Machines Dismantled . | . . . Machines Sabotaged . | . . . Overloaded Fab Kills . | . . . Hacking | -11 -10 -9 --------- Run | Yrd Mat Mat Machines Accessed 5 | . 2 3 Terminals 3 | . 1 2 Fabricators . | . . . Repair Stations 1 | . 1 . Recycling Units . | . . . Scanalyzers 1 | . . 1 Garrison Access . | . . . Total Hacks 17 | . 8 9 Successful 11 | . 3 8 Failed 6 | . 5 1 Catastrophic 5 | . 4 1 Database Lockouts . | . . . Manual . | . . . Terminals 11 | . 6 5 Fabricators . | . . . Repair Stations 2 | . 2 . Recycling Units . | . . . Scanalyzers 4 | . . 4 Garrison Access . | . . . Terminal Hacks 6 | . 2 4 Record 4 | . 1 3 Alert Level 1 | . . 1 Recall Investigation 1 | . 1 . Fabricator Hacks . | . . . Repair Station Hacks 1 | . 1 . Refit 1 | . 1 . Recycling Unit Hacks . | . . . Scanalyzer 4 | . . 4 Insert Component 2 | . . 2 Analyze 2 | . . 2 Garrison Access Hacks . | . . . Unauthorized Hacks . | . . . Terminals . | . . . Fabricators . | . . . Repair Stations . | . . . Recycling Units . | . . . Scanalyzers . | . . . Garrison Access . | . . . Data Cores Recovered . | . . . Used . | . . . Hacking Detections 3 | . 2 1 Full Trace Events 3 | . 2 1 Feedback Events . | . . . Feedback Blocked . | . . . Robot Schematics Acquired . | . . . Robots Built . | . . . Authchips . | . . . Time . | . . . Total Robot Build Rating . | . . . Part Schematics Acquired 2 | . . 2 Parts Built . | . . . Authchips . | . . . Time . | . . . Total Part Build Rating . | . . . Parts Repaired . | . . . Time . | . . . Parts Recycled . | . . . Recycled Matter . | . . . Retrieved Matter . | . . . Retrieved Components . | . . . Parts Scanalyzed 2 | . . 2 Part Schematics Acquired 2 | . . 2 Parts Damaged 1 | . . 1 Bothacking | -11 -10 -9 ------------ Run | Yrd Mat Mat Used RIF Installer . | . . . Robots Hacked . | . . . Non-combat . | . . . Combat . | . . . Robot Hacks Applied . | . . . Relay Couplers Released . | . . . Fabnet Peak Effective % . | . . . Robots Rewired . | . . . Allies Hacked . | . . . Hacks Repelled . | . . . Allies | -11 -10 -9 -------- Run | Yrd Mat Mat Total Allies . | . . . Largest Group . | . . . Highest-Rated Group . | . . . Highest-Rated Ally . | . . . Total Orders . | . . . Ally Attacks . | . . . Total Damage . | . . . Kills . | . . . Allies Corrupted . | . . . Allies Melted . | . . . Intel | -11 -10 -9 ------- Run | Yrd Mat Mat Active Infowar (turns) 18 | . 18 . Seismic 18 | . 18 . Robot Analysis Total . | . . . Derelict Logs Recovered . | . . . Drone Launches . | . . . Drone Recoveries . | . . . Exploration | -11 -10 -9 ------------- Run | Yrd Mat Mat Turns Passed 1749 | 59 839 851 Spaces Moved 1041 | 60 588 393 Core 86 | 17 69 . Treads 614 | . 221 393 Legs . | . . . Wheels 239 | 43 196 . Hover 102 | . 102 . Flight . | . . . Fastest Speed 50 | 50 76 160 Average Speed 140 | 71 122 178 Slowest Speed 240 | 80 200 240 Overloaded Moves . | . . . Propulsion Burnouts . | . . . Robots Hopped . | . . . Potential Cave-ins . | . . . Cave-ins Triggered . | . . . Exploration Rate (%) 33 | 6 64 31 Regions Visited 2 Branch Regions . Pre-discovered Areas . | . . . Known Exits Taken . | . . . Unknown Exits Taken 2 | 1 1 . Scrap Searched . | . . . Spaces Dug . | . . . Terrain Destroyed 33 | . 31 2 Melee . | . . . Projectile . | . . . AOE 33 | . 31 2 Terrain Rammed . | . . . Walls Destroyed . | . . . Machines Disabled . | . . . Actions | -11 -10 -9 --------- Run | Yrd Mat Mat Total 1217 | 71 666 480 Wait . | . . . Move 1039 | 59 587 393 Hop . | . . . Pick Up 34 | 4 17 13 Fast Attach 3 | . . 3 Attach 25 | 4 13 8 Detach 7 | . 5 2 Swap 8 | . 4 4 Drop 15 | . 6 9 Fire 84 | 4 34 46 Melee . | . . . Ram . | . . . Kick . | . . . Crush 2 | . . 2 Escape Stasis . | . . . Rewire . | . . . Trap . | . . . Miscellaneous . | . . . Route ------- -11/Scrapyard -10/Materials (discovered 3 exits: *Mat x2 / [*Min]) -9/Materials (discovered 2 exits: [*Min] / [*Sto]) History --------- Turn | Location | Event 2 | -11/Scrapyard | Met Revision 17 40 | -11/Scrapyard | Discovered new exit (range 8) 60 | -11/Scrapyard | Entered Materials 91 | -10/Materials | Discovered new exit (range 8) 160 | -10/Materials | Discovered new exit (range 15) 308 | -10/Materials | Build established: Mutant 488 | -10/Materials | Core integrity fell below 50% 779 | -10/Materials | Discovered new exit (range 16) 899 | -10/Materials | Entered another Materials area 899 | -9/Materials | Evolved 2 slots: Power x1, Utility x1 1228 | -9/Materials | Lost 5 parts (1p1n3w) 1293 | -9/Materials | Discovered new exit (range 7) 1518 | -9/Materials | Build established: Scavenger-Mutant 1562 | -9/Materials | Discovered new exit (range 16) 1602 | -9/Materials | Core integrity fell below 50% 1750 | -9/Materials | Self-destructed Last Messages --------------- 01638_ U-05 Engineer builds a Wall. 01643_ R-06 Scavenger collects Corrupted Sml. Laser. 01644_ Terminal disabled. 01650_ R-06 Scavenger collects Aluminum Leg. 01650_ Terminal disabled. 01677_ C-30 ARC bursts open, deploying its payload. 01677_ S-10 Pest unfolds itself. 01678_ K-01 Serf collects debris. 01680_ EM Pulse Gun destroyed. 01681_ K-01 Serf collects debris. 01698_ Acquired Mining Laser. 01699_ Heat Sink destroyed. 01702_ S-10 Pest destroyed. 01705_ R-06 Scavenger collects Lgt. Ion Engine. 01709_ R-06 Scavenger collects Flight Unit. 01710_ S-10 Pest destroyed. 01713_ K-01 Serf collects debris. 01730_ K-01 Serf cleans the Machine. Map ----- +----------------------------------------------------+ | ?????????????????????????????????????????????????? | | ?????????????????????????????????????????????????? | | ?????????????????????????????????????????????????? | | ?????????????????????????????????????????????????? | | ?????????????????????????????????????????????????? | | ?????????????????????????????????????????????????? | | ?????????????????????????????????????????????????? | | ?????????????????????????????????????????????????? | | ?????????????????????????????????????????????????? | | ?????????????????????????????????????????????????? | | ?????????????????????????????????????????????????? | | ?????????????????????????????????????????????????? | | ?????????????????????????????????????????????????? | | ?????????????????????????????????????????????????? | | ?????????????????????????? #?????????????????????? | | ?????????????????????????? #?????????????????????? | | ?????????????????????????? #?????????????????????? | | ???????????????????# ????? #?????????????????????? | | ???????????????????# ??"" #?????????????????????? | | ???????????????????# #?????????????????????? | | ???????????????????# """ #?????????????????????? | | ???????????????????# """ #?????????????????????? | | ???????????????????# """ #?????????????????????? | | ????????????????????? """ #?????????????????????? | | ??????????????????????? #?????????????????????? | | ????????????????????????#@#### #???????????????? | | ????????????????????????# #???????????????? | | ?????????????# ?????????# #### #???????????????? | | ?????????????# ????????# #??????????????????????? | | ?????????????# ??????## ##?????????????????????? | | ?????????????# ?????# #?????????????????????? | | ?????????????# ###### #?????????????????????? | | ?????????????# #?????????????????????? | | ?????????????# #?????????????????????? | | ?????????????# #?????????????????????? | | ?????????????# #?????????????????????? | | ?????????????# #?????????????????????? | | ?????????????# #?????????????????????? | | ?????????????# #####k #?????????????????????? | | ?????????????###+##?#### ##????????????????????? | | ????????????????????#""" aw #????????????????????? | | ????????????????????#" #????????????????????? | | ????????????????????#"| #????????????????????? | | ????????????????????#"" < #????????????????????? | | #######?????????????#" #????????????????????? | | #?????????????#" #????????????????????? | | """ #?????????????#"""%% #???????????####?????? | | "R" #?????????????#### ##???????????# ?????? | | " " #????????????????# #???####?????# ????? | | #????????????????# ############?# ????? | +----------------------------------------------------+ Best States ------------- Heat Dissipation 48 Energy Generation 17 Energy Capacity 665 Matter Stores 356 Matter Capacity 450 Sight Range 16 Terrain Scan Density 10 Evasion (%) 50 Recoil Reduction 2 Item Schematics ----------------- Beam Rifle | -9/Materials | Scanalyzed Grenade Launcher | -9/Materials | Scanalyzed Robot Schematics ------------------ None Fabricated ------------ Nothing Repaired ---------- Nothing Alien Tech Used ----------------- None Achievements -------------- Crack Shot Risk Taker Storm Trooper Uninvited Guest Challenges ------------ None Game ------ Seed LobotomyProjectileKatana Manual? 0 Play Time 00:32:03 Cumulative 1.1 hours Start 2025.09.12 @ 16:32:31 End 2025.09.15 @ 16:14:56 Sessions 3 Manual Loads 0 Difficulty Rogue Special Mode None Game No. 3 Rogue 3 Adventurer 0 Explorer 0 Win Type - Total 0 Types 0/0/0/0/0/0/0/0/0/0 Lore% 0 Gallery% 3 Achievement% 3 Wizard Run 0 Options --------- Layout 1 ASCII 0 Keyboard 0 Movement Mouse Keybinds 0 Fullscreen 2 Font 24/Smallcaps Map View 50x35 Zoom Use 0% Tactical HUD 1 Map Filters NONE Filters NONE Steam 1 RUN: 73aab7e0-657d-4099-aa53-32c2f5a22021